Cogmind - Beta 17 @@@ ROGUE MODE // 2026.07.27 @ 18:11:55 Player: 50l Result: Destroyed by S-27 Virus with Autogun Performance ------------- Evolutions (3) 1500 Regions Visited (4) 800 Robots Destroyed (10) 50 Value Destroyed (196) 196 Prototype IDs (1) 20 Alien Tech Used (0) 0 Bonus (0) 0 TOTAL SCORE: 2566 Bonus ------- None Cogmind --------- Core Integrity 0/700 Matter 300/300 Energy 100/100 System Corruption 14% Temperature Cool (0) Movement Core (50) Location -7/Factory Parts ------- > --- POWER (1) -------- (None) > --- PROPULSION (6) --- (None) > --- UTILITY (4) ------ (None) > --- WEAPON (2) ------- (None) > --- INVENTORY (5) ---- Flight Unit VTOL Module Small Storage Unit Medium Storage Unit Peak State ------------ > --- POWER ------------ (None) > --- PROPULSION ------- Aluminum Leg Aluminum Leg > --- UTILITY ---------- Signal Interpreter Improved Signal Interpreter Hacking Suite > --- WEAPON ----------- Small Laser Small Laser > --- INVENTORY -------- Flight Unit Small Storage Unit Medium Storage Unit Grenade Launcher Mining Claw [Rating: 11] Favorites ----------- Power None Propulsion Aluminum Leg Leg Aluminum Leg Flight Unit Flight Unit Utility Signal Interpreter Processor Signal Interpreter Hackware Hacking Suite Weapon Small Laser Energy Gun Small Laser Launcher Grenade Launcher Slashing Weapon Mining Claw Build | -11 -10 -9 -8 -7 ------- Run | Yrd Mat Mat Mat Fac Slots Evolved 6 | . . 2 2 2 Power . | . . . . . Propulsion 4 | . . 1 1 2 Utility 2 | . . 1 1 . Weapon . | . . . . . Parts Attached 11 | 4 . 4 3 . Power . | . . . . . Engine . | . . . . . Core . | . . . . . Reactor . | . . . . . Propulsion 4 | 2 . 1 1 . Treads . | . . . . . Leg 2 | 2 . . . . Wheel . | . . . . . Hover . | . . . . . Flight 2 | . . 1 1 . Utility 3 | . . 1 2 . Device . | . . . . . Storage . | . . . . . Processor 2 | . . 1 1 . Hackware 1 | . . . 1 . Protection . | . . . . . Artifact . | . . . . . Weapon 4 | 2 . 2 . . Energy Gun 2 | 2 . . . . Energy Cannon . | . . . . . Ballistic Gun . | . . . . . Ballistic Cannon . | . . . . . Launcher 1 | . . 1 . . Special Weapon . | . . . . . Impact Weapon . | . . . . . Slashing Weapon 1 | . . 1 . . Piercing Weapon . | . . . . . Special Melee Weapon . | . . . . . Unidentified Prototypes 1 | . . 1 . . Parts Lost 9 | . . . 4 5 Power . | . . . . . Propulsion 2 | . . . 2 . Utility 3 | . . . . 3 Weapon 4 | . . . 2 2 Highest Loss Streak 5 | . . . 4 5 To Critical Strikes . | . . . . . Average Backups 4 | . 3 5 4 4 Power . | . . . . . Propulsion . | . . 1 . 1 Utility 1 | . 1 2 2 2 Weapon 1 | . . 2 2 . Tool/Special . | . . . . . Unused Backups 3 | . . . . 3 Power . | . . . . . Propulsion 1 | . . . . 1 Utility 2 | . . . . 2 Weapon . | . . . . . Tool/Special . | . . . . . Average Slot Usage (%) 46 | . 57 52 45 18 Leg 16 | . 28 20 14 . Processor 9 | . . 9 11 9 Hackware 1 | . . . 3 6 Energy Gun 14 | . 28 20 9 . Launcher 2 | . . 1 5 . Peak Build Rating 11 | 4 4 6 11 9 Average Rating 5 | 2 4 4 6 6 On Entrance 4 | . 4 4 5 8 Avg Prop Armor Cover (%) 23 | 24 24 23 21 . Naked Turns 5 | . . . . 5 Heaviest Build 4 | 2 2 4 4 2 Greatest Support 4 | 3 3 3 4 4 Greatest Overweight (x) 1 | . . 1 1 . Average Overweight (x) . | . . . . . Largest Inventory Capacity 5 | 5 5 5 5 5 Average Capacity 5 | 5 5 5 5 5 Most Carried 5 | 1 5 5 5 5 Average Carried 4 | . 3 5 4 4 Final Capacity 5 | 5 5 5 5 5 Final Carried 5 | 1 5 5 4 4 Class Distribution -------------------- 100% | Mutant Dominant Class ---------------- Mutant | -10/Materials Mutant | -9/Materials Mutant | -8/Materials Mutant | -7/Factory Resources | -11 -10 -9 -8 -7 ----------- Run | Yrd Mat Mat Mat Fac Matter Collected 338 | 135 42 123 38 . Remotely . | . . . . . Salvage Created 297 | . 99 126 42 30 Parts 21 | . 4 6 10 1 Haulers Intercepted 3 | . 2 1 . . Recyclers Shooed 1 | . . . 1 . Parts Field Recycled . | . . . . . Retrieved Matter . | . . . . . Parts Self-Destructed . | . . . . . Prevented . | . . . . . Parts Restored . | . . . . . Kills | -11 -10 -9 -8 -7 ------- Run | Yrd Mat Mat Mat Fac Combat Hostiles Destroyed 7 | . . 2 4 1 Guns 3 | . . 2 1 . AOE 3 | . . . 3 . Classes Destroyed 4 | . 1 1 2 . Hauler 3 | . 2 1 . . Swarmer 4 | . . . 3 1 Grunt 2 | . . 2 . . Sentry 1 | . . . 1 . Best Kill Streak 2 | . 1 2 2 1 Combat Bots Only 2 | . . 2 2 1 Max Kills in Single Turn 2 | . 1 1 2 1 Gunslinging . | . . . . . Exploded 2 | . . . 2 . Melee . | . . . . . Uniques/NPCs Destroyed . | . . . . . Combat | -11 -10 -9 -8 -7 -------- Run | Yrd Mat Mat Mat Fac Hostile Shots Fired 156 | . . 31 67 58 Missed 47 | . . 11 26 10 Hits 109 | . . 20 41 48 Projectile 109 | . . 20 41 48 Critical Strikes 3 | . . 1 1 1 Damage Taken 1641 | . . 287 542 812 Core 1115 | . . 130 278 707 Absorbed by Shields . | . . . . . Core Remaining (%) 79 | 100 100 67 49 . Volleys Fired 22 | . 3 11 8 . Largest 2 | . 2 2 2 . Hottest 80 | . 80 80 80 . Shots Fired 39 | . 6 21 12 . Gun 33 | . 6 20 7 . Cannon . | . . . . . Launcher 6 | . . 1 5 . Special . | . . . . . Kinetic . | . . . . . Thermal 33 | . 6 20 7 . Explosive 6 | . . 1 5 . Electromagnetic . | . . . . . Robot Hit Streak 6 | . 6 5 4 . Robot Miss Streak 2 | . . 2 2 . Penetration Max . | . . . . . Secondary Targets . | . . . . . Shots Hit Robots 26 | . 6 11 6 3 Core Hits 17 | . 4 6 6 1 Critical Kills . | . . . . . Critical Parts Destroyed . | . . . . . Critical Strikes . | . . . . . Melee Attacks 4 | . . 1 . 3 Impact . | . . . . . Slashing 4 | . . 1 . 3 Piercing . | . . . . . Sneak Attacks . | . . . . . Combat Hostiles . | . . . . . Follow-up Attacks . | . . . . . Damage Inflicted 743 | . 66 157 350 170 Guns 235 | . 66 133 36 . Cannons . | . . . . . Explosions 321 | . . 24 297 . Melee 45 | . . . . 45 Ramming 142 | . . . 17 125 Kinetic . | . . . . . Thermal 235 | . 66 133 36 . Explosive 321 | . . 24 297 . Electromagnetic . | . . . . . Impact . | . . . . . Slashing 45 | . . . . 45 Piercing . | . . . . . Highest Corruption 14 | . . . 1 14 Average Corruption 1 | . . . 1 4 Corruption Purged . | . . . . . Corruption Blocked . | . . . . . Effects 1 | . . . 1 . Matter Fused 1 | . . . 1 . Overload Shots . | . . . . . Overflow Damage 42 | . . . 37 5 Projectiles . | . . . . . Explosions 37 | . . . 37 . Melee 5 | . . . . 5 Knockbacks . | . . . . . Impact . | . . . . . Kinetic . | . . . . . Secondary . | . . . . . Self-Inflicted Damage 84 | . . . 30 54 Shots 1 | . . . 1 . Rammed 40 | . . . 4 36 Targets Rammed 40 | . . . 4 36 Kicked . | . . . . . Crushed . | . . . . . Highest Temperature 383 | . 6 383 . . Average Temperature 77 | . 3 99 . . Received Heat Transfer 270 | . . 108 162 . Effects 2 | . . 2 . . Interference 2 | . . 2 . . Siege Activations . | . . . . . Martial Activations . | . . . . . Shielding Activations . | . . . . . Robots Disrupted . | . . . . . Combat Hostiles . | . . . . . Robots Corrupted 1 | . . . . 1 Combat Hostiles 1 | . . . . 1 Parts Fried 1 | . . . . 1 Impact Corruptions 1 | . . . . 1 Robots Melted . | . . . . . Combat Hostiles . | . . . . . Parts Melted 1 | . . 1 . . Heat Transferred 525 | . 150 300 75 . Parts Sabotaged . | . . . . . Parts Stolen . | . . . . . Parts Stripped . | . . . . . Power Chain Reactions . | . . . . . Alert | -11 -10 -9 -8 -7 ------- Run | Yrd Mat Mat Mat Fac Maximum Alert Level . | . . . . . Low Security (%) 100 | 100 100 100 100 100 Level 1 . | . . . . . Level 2 . | . . . . . Level 3 . | . . . . . Level 4 . | . . . . . Level 5 . | . . . . . High Security . | . . . . . Max Security . | . . . . . Peak Influence 122 | . 16 62 122 35 Initial 35 | . . 2 21 35 Average 21 | . 5 12 37 19 Influence Increases 337 | . 23 105 179 30 Destroy 0b10 Robot/C 140 | . . 40 80 20 Destroy 0b10 Robot/NC 15 | . 10 5 . . Destroy Leader 46 | . 4 12 20 10 Successful Hack 32 | . 9 11 12 . Disable Machine 30 | . . 15 15 . Destroy Structure 29 | . . 7 22 . Lose Combat Pursuer 45 | . . 15 30 . Influence Decreases 337 | . 16 60 154 107 Entered New Map 78 | . . 5 31 42 Time Decay 174 | . 16 55 83 20 Lost Part 85 | . . . 40 45 Squads Dispatched 5 | . . 1 4 . Investigation 2 | . . 1 1 . Extermination . | . . . . . Reinforcement 3 | . . . 3 . Assault . | . . . . . Garrison . | . . . . . Intercept . | . . . . . Searches Triggered . | . . . . . Construction Impeded . | . . . . . Haulers Reinforced . | . . . . . Active Scanning Responses . | . . . . . Cargo Convoy Interrupts . | . . . . . Stealth | -11 -10 -9 -8 -7 --------- Run | Yrd Mat Mat Mat Fac Distress Signals . | . . . . . Communications Jammed . | . . . . . Distress Signals . | . . . . . Times Spotted 30 | . 1 9 17 3 Peak Tracking Total 10 | . 1 7 10 3 Tactical Retreats 3 | . . 1 2 . Traps | -11 -10 -9 -8 -7 ------- Run | Yrd Mat Mat Mat Fac Traps Triggered . | . . . . . Indirectly . | . . . . . Trap Hack Attempts . | . . . . . Triggered . | . . . . . Disarmed . | . . . . . Reprogrammed . | . . . . . Reused . | . . . . . Traps Extracted . | . . . . . Installed . | . . . . . Triggered . | . . . . . Machines | -11 -10 -9 -8 -7 ---------- Run | Yrd Mat Mat Mat Fac Machines Disabled 2 | . . 1 1 . Max in Single Turn 1 | . . 1 1 . Machines Repaired . | . . . . . Machines Dismantled . | . . . . . Machines Sabotaged . | . . . . . Overloaded Fab Kills . | . . . . . Hacking | -11 -10 -9 -8 -7 --------- Run | Yrd Mat Mat Mat Fac Machines Accessed 6 | . 1 3 2 . Terminals 6 | . 1 3 2 . Fabricators . | . . . . . Repair Stations . | . . . . . Recycling Units . | . . . . . Scanalyzers . | . . . . . Garrison Access . | . . . . . Total Hacks 21 | . 3 10 8 . Successful 9 | . 2 4 3 . Failed 12 | . 1 6 5 . Catastrophic 2 | . . 1 1 . Database Lockouts . | . . . . . Manual 21 | . 3 10 8 . Terminals 21 | . 3 10 8 . Fabricators . | . . . . . Repair Stations . | . . . . . Recycling Units . | . . . . . Scanalyzers . | . . . . . Garrison Access . | . . . . . Terminal Hacks 3 | . 1 1 1 . Level Access Points 3 | . 1 1 1 . Fabricator Hacks . | . . . . . Repair Station Hacks . | . . . . . Recycling Unit Hacks . | . . . . . Scanalyzer . | . . . . . Garrison Access Hacks . | . . . . . Unauthorized Hacks 6 | . 1 3 2 . Terminals 6 | . 1 3 2 . Botnet 6 | . 1 3 2 . Fabricators . | . . . . . Repair Stations . | . . . . . Recycling Units . | . . . . . Scanalyzers . | . . . . . Garrison Access . | . . . . . Data Cores Recovered . | . . . . . Used . | . . . . . Hacking Detections 5 | . . 3 2 . Full Trace Events 2 | . . 1 1 . Feedback Events 1 | . . . 1 . Corruption 1 | . . . 1 . Feedback Blocked . | . . . . . Robot Schematics Acquired . | . . . . . Robots Built . | . . . . . Authchips . | . . . . . Time . | . . . . . Total Robot Build Rating . | . . . . . Part Schematics Acquired . | . . . . . Parts Built . | . . . . . Authchips . | . . . . . Time . | . . . . . Total Part Build Rating . | . . . . . Part Studies Acquired . | . . . . . Parts Repaired . | . . . . . Time . | . . . . . Parts Recycled . | . . . . . Recycled Matter . | . . . . . Retrieved Matter . | . . . . . Retrieved Components . | . . . . . Parts Scanalyzed . | . . . . . Part Schematics Acquired . | . . . . . Parts Damaged . | . . . . . Bothacking | -11 -10 -9 -8 -7 ------------ Run | Yrd Mat Mat Mat Fac Used RIF Installer . | . . . . . Robots Hacked . | . . . . . Non-combat . | . . . . . Combat . | . . . . . Robot Hacks Applied . | . . . . . Relay Couplers Released . | . . . . . Fabnet Peak Effective % . | . . . . . Robots Rewired . | . . . . . Allies Hacked . | . . . . . Hacks Repelled . | . . . . . Allies | -11 -10 -9 -8 -7 -------- Run | Yrd Mat Mat Mat Fac Total Allies . | . . . . . Largest Group . | . . . . . Highest-Rated Group . | . . . . . Highest-Rated Ally . | . . . . . Total Orders . | . . . . . Ally Attacks . | . . . . . Total Damage . | . . . . . Kills . | . . . . . Allies Corrupted . | . . . . . Allies Melted . | . . . . . Intel | -11 -10 -9 -8 -7 ------- Run | Yrd Mat Mat Mat Fac Active Infowar (turns) . | . . . . . Robot Analysis Total . | . . . . . Derelict Logs Recovered . | . . . . . Drone Launches . | . . . . . Drone Recoveries . | . . . . . Exploration | -11 -10 -9 -8 -7 ------------- Run | Yrd Mat Mat Mat Fac Turns Passed 519 | 20 65 186 189 59 Spaces Moved 623 | 26 102 246 224 25 Core 556 | 26 102 246 174 8 Treads . | . . . . . Legs . | . . . . . Wheels . | . . . . . Hover . | . . . . . Flight 67 | . . . 50 17 Fastest Speed 40 | 50 50 50 40 40 Average Speed 57 | 50 50 53 69 43 Slowest Speed 100 | 50 50 100 100 50 Overloaded Moves . | . . . . . Propulsion Burnouts . | . . . . . Robots Hopped 5 | . . . 5 . Potential Cave-ins . | . . . . . Cave-ins Triggered . | . . . . . Exploration Rate (%) 19 | 3 27 32 33 1 Regions Visited 4 Branch Regions . Pre-discovered Areas . | . . . . . Known Exits Taken 3 | . 1 1 1 . Unknown Exits Taken 1 | 1 . . . . Scrap Searched . | . . . . . Spaces Dug . | . . . . . Terrain Destroyed 28 | . . 7 21 . Melee . | . . . . . Projectile . | . . . . . AOE 28 | . . 7 21 . Terrain Rammed . | . . . . . Walls Destroyed . | . . . . . Machines Disabled . | . . . . . Actions | -11 -10 -9 -8 -7 --------- Run | Yrd Mat Mat Mat Fac Total 720 | 30 109 276 237 68 Wait 13 | . 1 9 2 1 Move 610 | 25 101 245 214 25 Hop 4 | . . . 4 . Pick Up 5 | 1 4 . . . Fast Attach 10 | 4 . 4 2 . Attach 3 | . . . 1 2 Detach 1 | . . . . 1 Swap 5 | . . 3 2 . Drop 3 | . . 3 . . Fire 22 | . 3 11 8 . Melee 4 | . . 1 . 3 Ram 40 | . . . 4 36 Kick . | . . . . . Crush . | . . . . . Escape Stasis . | . . . . . Rewire . | . . . . . Trap . | . . . . . Miscellaneous . | . . . . . Route ------- -11/Scrapyard -10/Materials (discovered 4 exits: *Mat x3 / [*Min]) -9/Materials (discovered 4 exits: *Mat x3 / [*Min]) -8/Materials (discovered 3 exits: *Fac x3) -7/Factory History --------- Turn | Location | Event 5 | -11/Scrapyard | Discovered new exit (range 15) 21 | -11/Scrapyard | Entered Materials 24 | -10/Materials | Identified exit to Materials 45 | -10/Materials | Discovered new exit (range 12) 86 | -10/Materials | Entered another Materials area 86 | -9/Materials | Evolved 2 slots: Propulsion x1, Utility x1 181 | -9/Materials | Discovered new exit (range 16) 184 | -9/Materials | Identified exit to Materials 272 | -9/Materials | Entered another Materials area 272 | -8/Materials | Evolved 2 slots: Propulsion x1, Utility x1 308 | -8/Materials | Identified exit to Factory 313 | -8/Materials | Build established: Mutant 461 | -8/Materials | Core integrity fell below 50% 461 | -8/Materials | Entered Factory 461 | -7/Factory | Evolved 2 slots: Propulsion x2 462 | -7/Factory | Lost 4 parts (2n2w) 495 | -7/Factory | Core integrity fell below 50% 511 | -7/Factory | Core integrity fell below 20% 516 | -7/Factory | System corruption reached 10% 520 | -7/Factory | Destroyed by S-27 Virus with Autogun Last Messages --------------- 00494_ Destroyed VTOL Module. 00494_ S-27 Virus system corrupted by crushing effect. 00495_ S-27 Virus system terminally corrupted. 00495_ Lgt. Nuclear Core fried. 00495_ Slammed into S-27 Virus. 00501_ Destabilizing: Core damaged (-21). 00502_ Slammed into S-27 Virus. 00503_ Destabilizing: Core damaged (-14). 00504_ Slammed into S-27 Virus. 00509_ Broken Imp. Signal Interpreter destroyed. 00509_ System corrupted by crushing effect (+5). 00510_ Slammed into S-27 Virus. 00515_ Hacking Suite destroyed. 00515_ System corrupted by crushing effect (+5). 00516_ Slammed into S-27 Virus. 00517_ Destabilizing: System corrupted (+1). 00518_ Slammed into S-27 Virus. 00518_ Destabilizing: System corrupted (+2). 00519_ Slammed into S-27 Virus. Map ----- +----------------------------------------------------+ | ????????????????????????????????? | | ????????????????????????????????? | | ????????????????????????????????? | | ????????????????????????????????? | | ????????????????????????????????? | | ????????????????????????????????? | | ????????????????????????????????? | | ????????????????????????????????? | | ????????????????????????????????? | | ??###########???????????????????? | | ??# #???????????????????? | | ??# ] #???????????????????? | | ??# #???????????????????? | | ??# #???????????????????? | | ??# #???????????????????? | | ??# #???????????????????? | | ???? ! #???????????????????? | | ?????? ?????????????????????? | | ???????#+######## #?????????? | | ???????# #?????????? | | ???????# ######## #?????????? | | ########+#??????????????????????? | | # %% #??????????????????????? | | # %[%#??????????? #?????????? | | # %%=%s#?????????? #?????????? | | # %%%@#???????? #?????????? | | # %s######## #?????????? | | # # #?????????? | | # # #?????????? | | # # "" #?????????? | | # + "" #?????????? | | # # """ #?????????? | | # # """ ???????????? | | # # """ ????????????? | | # # ????????????? | | # # "" ???????????? | | # # "" ??????????? | | # # """ ?????????? | | # # """ ?????????? | | # # ""???? ?????????? | | ########## ??????????????? | | ?????????# ""??????????????? | | ?????????# "???????????????? | | ?????????# "???????????????? | | ?????????? ?????????????????? | | ?????????? ???????????????????? | | ????????????????????????????????? | | ????????????????????????????????? | | ????????????????????????????????? | | ????????????????????????????????? | +----------------------------------------------------+ Best States ------------- Heat Dissipation 34 Energy Generation 5 Energy Capacity 100 Matter Stores 300 Matter Capacity 300 Sight Range 16 Terrain Scan Density 10 Evasion (%) 62 Offensive Hacking 10 Item Schematics ----------------- None Robot Schematics ------------------ None Fabricated ------------ Nothing Repaired ---------- Nothing Studied --------- None Alien Tech Used ----------------- None Achievements -------------- None Challenges ------------ None Game ------ Seed ReflexTiamatImpeller Manual? 0 Play Time 00:10:28 Cumulative 365.5 hours Start 2026.07.27 @ 18:02:30 End 2026.07.27 @ 18:11:55 Sessions 1 Manual Loads 0 Difficulty Rogue Special Mode None Game No. 214 Rogue 140 Adventurer 74 Explorer 0 Win Type - Total 18 Types 15/0/0/3/0/0/0/0/0/0 Lore% 75 Gallery% 68 Achievement% 53 Wizard Run 0 Options --------- Layout 2 ASCII 0 Keyboard 0 Movement Mouse Keybinds 0 Fullscreen 1 Font 32/SmallcapsGlow Map View 50x44 Zoom Use 0% Tactical HUD 1 Map Filters NONE Filters NONE Steam 1 RUN: 0a1938d4-27d6-4129-baa7-63ccbfb32437